fUST/lending_fUST_20250310
["ID","MTS","AMOUNT","RATE_DAILY","PERIOD"]
[355774892,1741552160185,-500.0,0.00035527,2]
[355774893,1741552160210,-575.14252061,0.00035527,2]
[355774894,1741552160231,-4250.30299376,0.00035528,2]
[355774895,1741552160252,-429.58774949,0.000356,5]
[355774896,1741552160273,-500.0,0.000356,2]
[355774897,1741552160295,-156.36,0.0003589,2]
[355774898,1741552160316,-500.0,0.0003589,2]
[355774899,1741552160337,-2960.0,0.0003596,2]
[355774900,1741552160358,-164.895,0.00035994,5]
[355774901,1741552160378,-686.71033131,0.00036,2]
[355774902,1741552160398,-214.83544598,0.00036575,5]
[355774903,1741552160419,-500.0,0.00036575,5]
[355774904,1741552160439,-319.24796946,0.00036575,5]
[355774905,1741552161127,-180.09194162,0.00036575,5]
[355774906,1741552161148,-158.53339584,0.00036575,5]
[355774907,1741552161168,-823.0,0.00037512,2]
[355774908,1741552161190,-160.0,0.00037764,2]
[355774909,1741552161211,-500.0,0.00037963,2]
[355774910,1741552161232,-156.36,0.00039469,2]
[355774911,1741552161253,-156.36,0.00039469,2]
[355774912,1741552161274,-156.36,0.00039469,2]
[355774913,1741552161295,-156.36,0.00039469,2]
[355774914,1741552161316,-169.91892782,0.00039478,15]
[355774915,1741552161339,-22622.0232772,0.00039479,2]
[355774916,1741552161361,-203.4685256,0.00040081,2]
[355774917,1741552161382,-390.36346088,0.00040431,5]
[355774919,1741552169120,-761.63653912,0.00040431,5]
[355774920,1741552169141,-1000.0,0.00041079,2]
[355774921,1741552169162,-500.0,0.00041211,2]
[355774922,1741552169184,-633.91480034,0.00042054,10]
[355774930,1741552201070,1243.23024582,0.0003386,2]
[355774931,1741552201258,1243.23024582,0.0003886,2]
[355774944,1741552232856,-1243.23024582,0.0004386,2]
[355774945,1741552232867,-151.0,0.00045,120]
[355774946,1741552232878,-151.0,0.00045,120]
[355774947,1741552232889,-151.0,0.00045,120]
[355774948,1741552232899,-151.0,0.00045,120]
[355774949,1741552232909,-416.66666667,0.00046195,2]
[355774950,1741552232918,-190.23728722,0.000463,2]
[355774951,1741552232930,-394.82305494,0.000463,28]
[355774952,1741552232939,-550.0,0.00046364,5]
[355774953,1741552232951,-171.35,0.00046365,30]
[355774954,1741552232961,-986.86,0.00046365,30]
[355774955,1741552232971,-822.38,0.00046365,30]
[355774956,1741552232981,-685.32,0.00046365,30]
[355774957,1741552232991,-571.1,0.00046365,30]
[355774958,1741552233000,-475.92,0.00046365,30]
[355774959,1741552233009,-396.6,0.00046365,30]
[355774960,1741552233019,-330.5,0.00046365,30]
[355774961,1741552233029,-275.41,0.00046365,30]
[355774962,1741552233038,-229.51,0.00046365,30]
[355774963,1741552233047,-191.26,0.00046365,30]
[355774964,1741552233057,-159.38,0.00046365,30]
[355774965,1741552233067,-796.94,0.00046365,30]
[355774966,1741552233076,-6579.01487872,0.00046365,4]
[355774967,1741552233086,-500.22200962,0.00046373,10]
[355774968,1741552233095,-543.28486477,0.00046373,7]
[355774969,1741552233105,-305.69556243,0.00046373,7]
[355774970,1741552233115,-547.39189824,0.00046373,2]
[355774971,1741552233124,-500.0,0.00046373,10]
[355774972,1741552233134,-500.0,0.00046373,2]
[355774973,1741552233145,-500.0,0.00046373,10]
[355774974,1741552233154,-150.0,0.00046374,30]
[355774975,1741552233163,-30075.38357351,0.00046375,2]
[355774976,1741552233177,-1971.62849606,0.00046375,2]
[355775013,1741552238629,-3011.75,0.00046365,10]
[355775015,1741552238639,-189952.98793043,0.00046375,2]
[355775017,1741552238652,-525.08,0.000464,30]
[355775019,1741552238662,-154.45659711,0.00046493,120]
[355775020,1741552238672,-500.0,0.00046532,2]
[355775022,1741552238681,-409.08567014,0.0004656,2]
[355775024,1741552238691,-3289.50743936,0.00046565,4]
[355775026,1741552238701,-501.35403126,0.00046573,10]
[355775028,1741552238710,-500.0,0.00046573,10]
[355775030,1741552238719,-500.0,0.00046575,15]
[355775032,1741552238728,-512.909975,0.00046575,120]
[355775034,1741552238738,-500.0,0.00046575,120]
[355775036,1741552238747,-683.71,0.00046575,120]
[355775037,1741552238756,-448.14187392,0.00046575,120]
[355775039,1741552238766,-1576.94,0.00046575,120]
[355775041,1741552238775,-500.0,0.00046575,120]
[355775043,1741552238784,-500.0,0.00046575,120]
[355775045,1741552238794,-500.0,0.00046575,120]
[355775047,1741552238804,-500.0,0.00046575,120]
[355775049,1741552238814,-351.21496655,0.00046575,120]
[355775050,1741552238823,-500.0,0.00046575,120]
[355775052,1741552238832,-616.09,0.00046575,120]
[355775054,1741552238842,-1063.09,0.00046575,120]
[355775056,1741552238851,-528.94134562,0.00046575,120]
[355775058,1741552238860,-697.85,0.00046575,120]
[355775060,1741552238870,-500.0,0.00046575,120]
[355775062,1741552238881,-589.36,0.00046575,120]
[355775064,1741552238891,-2151.37,0.00046575,120]
[355775065,1741552238903,-500.0,0.00046575,120]
[355775067,1741552238912,-22945.58,0.00046575,7]
[355775069,1741552238923,-1083.09,0.00046575,120]
[355775071,1741552238933,-500.0,0.00046575,120]
[355775073,1741552238942,-500.0,0.00046575,120]
[355775075,1741552238952,-500.0,0.00046575,120]
[355775077,1741552238963,-500.0,0.00046575,120]
[355775079,1741552238973,-4678.99,0.00046575,120]
[355775081,1741552238983,-500.0,0.00046575,120]
[355775083,1741552238992,-500.0,0.00046575,120]
[355775085,1741552239002,-500.0,0.00046575,120]
[355775086,1741552239011,-1127.26,0.00046575,60]
[355775088,1741552239021,-604.65,0.00046575,120]
[355775090,1741552239031,-500.0,0.00046575,120]
[355775092,1741552239041,-500.0,0.00046575,120]
[355775093,1741552239051,-500.0,0.00046575,120]
[355775095,1741552239060,-846.22,0.00046575,120]
[355775097,1741552239071,-714.77,0.00046575,120]
[355775099,1741552239081,-2837.2,0.00046575,120]
[355775101,1741552239091,-631.79,0.00046575,120]
[355775103,1741552239101,-500.0,0.00046575,120]
[355775105,1741552239110,-500.0,0.00046575,120]
[355775107,1741552239120,-663.56,0.00046575,120]
[355775109,1741552239130,-500.0,0.00046575,120]
[355775111,1741552239139,-500.0,0.00046575,120]
[355775113,1741552239151,-500.0,0.00046575,120]
[355775115,1741552239160,-1332.51,0.00046575,120]
[355775128,1741552239281,-306.25154817,0.00046575,7]
[355775130,1741552239298,-500.0,0.00046575,120]
[355775132,1741552239308,-500.0,0.00046575,120]
[355775134,1741552239317,-500.0,0.00046575,120]
[355775136,1741552239326,-500.0,0.00046575,120]
[355775138,1741552239335,-500.0,0.00046575,120]
[355775140,1741552239344,-500.0,0.00046575,120]
[355775141,1741552239353,-500.0,0.00046575,120]
[355775143,1741552239363,-946.34,0.00046575,120]
[355775145,1741552239373,-500.0,0.00046575,120]
[355775147,1741552239382,-500.0,0.00046575,120]
[355775149,1741552239391,-500.0,0.00046575,120]
[355775151,1741552239403,-336.26157637,0.00046575,120]
[355775153,1741552239412,-500.0,0.00046575,120]
[355775155,1741552239421,-500.0,0.00046575,120]
[355775157,1741552239430,-500.0,0.00046575,120]
[355775159,1741552239440,-500.0,0.00046575,120]
[355775160,1741552239449,-500.0,0.00046575,15]
[355775162,1741552239458,-500.0,0.00046575,120]
[355775164,1741552239468,-500.0,0.00046575,120]
[355775166,1741552239477,-500.0,0.00046575,120]
[355775168,1741552239487,-500.0,0.00046575,120]
[355775170,1741552239498,-9999.0,0.00046575,2]
[355775172,1741552239507,-500.0,0.00046575,120]
[355775174,1741552239516,-500.0,0.00046575,120]
[355775176,1741552239525,-1000.0,0.00046575,2]
[355775177,1741552239534,-500.0,0.00046575,120]
[355775179,1741552239544,-1636.54,0.00046575,120]
[355775181,1741552239553,-500.0,0.00046575,120]
[355775183,1741552239563,-500.0,0.00046575,2]
[355775185,1741552239573,-500.0,0.00046575,10]
[355775187,1741552239582,-181.48026065,0.00046575,10]
[355775189,1741552239591,-625.5424235,0.00046618,10]
[355775191,1741552239601,-2066.14413898,0.000469,10]
[355775193,1741552239610,-154.4565971,0.00047096,120]
[355775194,1741552239619,-154.4565971,0.00047096,120]
[355775196,1741552239629,-154.45659711,0.00047096,120]
[355775198,1741552239638,-3289.50743936,0.00047113,4]
[355775200,1741552239650,-500.0,0.00047123,15]
[355775202,1741552239659,-500.0,0.00047123,120]
[355775204,1741552239667,-683.71,0.00047123,120]
[355775206,1741552239676,-1576.94,0.00047123,120]
[355775208,1741552239686,-500.0,0.00047123,120]
[355775210,1741552239695,-500.0,0.00047123,120]
[355775212,1741552239704,-500.0,0.00047123,120]
[355775213,1741552239714,-536.80094849,0.00047123,120]
[355775215,1741552239723,-500.0,0.00047123,120]
[355775217,1741552239733,-616.09,0.00047123,120]
[355775219,1741552239742,-1063.09,0.00047123,120]
[355775221,1741552239751,-697.85,0.00047123,120]
[355775223,1741552239760,-500.0,0.00047123,120]
[355775225,1741552239769,-589.36,0.00047123,120]
[355775227,1741552239778,-2151.37,0.00047123,120]
[355775229,1741552239788,-500.0,0.00047123,120]
[355775230,1741552239797,-22945.58,0.00047123,7]
[355775232,1741552239807,-500.0,0.00047123,120]
[355775234,1741552239816,-500.0,0.00047123,120]
[355775236,1741552239825,-500.0,0.00047123,120]
[355775238,1741552239836,-500.0,0.00047123,120]
[355775240,1741552239846,-4678.99,0.00047123,120]
[355775242,1741552239855,-500.0,0.00047123,120]
[355775244,1741552239865,-500.0,0.00047123,120]
[355775246,1741552239875,-345.61185506,0.00047123,120]
[355775248,1741552239887,-1127.26,0.00047123,60]
[355775250,1741552239897,-604.65,0.00047123,120]
[355775251,1741552239906,-500.0,0.00047123,120]
[355775253,1741552239917,-500.0,0.00047123,120]
[355775255,1741552239926,-846.22,0.00047123,120]
[355775257,1741552239936,-714.77,0.00047123,120]
[355775259,1741552239945,-2837.2,0.00047123,120]
[355775261,1741552239955,-631.79,0.00047123,120]
[355775263,1741552239965,-500.0,0.00047123,120]
[355775265,1741552239974,-500.0,0.00047123,120]
[355775267,1741552239983,-663.56,0.00047123,120]
[355775269,1741552239993,-500.0,0.00047123,120]
[355775271,1741552240003,-500.0,0.00047123,120]
[355775273,1741552240013,-500.0,0.00047123,120]
[355775275,1741552240022,-1332.51,0.00047123,120]
[355775277,1741552240031,-500.0,0.00047123,120]
[355775278,1741552240040,-500.0,0.00047123,120]
[355775280,1741552240050,-500.0,0.00047123,120]
[355775282,1741552240059,-500.0,0.00047123,120]
[355775284,1741552240069,-500.0,0.00047123,120]
[355775286,1741552240079,-500.0,0.00047123,120]
[355775288,1741552240088,-946.34,0.00047123,120]
[355775290,1741552240099,-500.0,0.00047123,120]
[355775292,1741552240108,-500.0,0.00047123,120]
[355775294,1741552240118,-581.87568643,0.00047123,120]
[355775296,1741552240127,-500.0,0.00047123,120]
[355775298,1741552240136,-500.0,0.00047123,120]
[355775300,1741552240146,-500.0,0.00047123,120]
[355775302,1741552240155,-500.0,0.00047123,15]
[355775303,1741552240165,-500.0,0.00047123,120]
[355775305,1741552240175,-430.98328976,0.00047123,120]
[355775307,1741552240185,-500.0,0.00047123,120]
[355775309,1741552240196,-500.0,0.00047123,120]
[355775312,1741552240211,-9999.0,0.00047123,2]
[355775314,1741552240224,-500.0,0.00047123,120]
[355775316,1741552240238,-500.0,0.00047123,120]
[355775319,1741552240253,-1000.0,0.00047123,2]
[355775321,1741552240265,-500.0,0.00047123,120]
[355775323,1741552240277,-1636.54,0.00047123,120]
[355775325,1741552240290,-500.0,0.00047123,120]
[355775327,1741552240303,-500.0,0.00047123,2]
[355775330,1741552240316,-500.0,0.0004717,6]
[355775332,1741552240329,-1410.22,0.000472,2]
[355775334,1741552240343,-500.0,0.00047307,6]
[355775337,1741552240356,-500.0,0.00047422,10]
[355775339,1741552240370,-500.0,0.00047422,10]
[355775341,1741552240384,-494.10931184,0.00047422,10]
[355775344,1741552240397,-502.8962849,0.00047422,10]
[355775346,1741552240409,-500.0,0.00047422,10]
[355775348,1741552240422,-500.0,0.00047422,10]
[355775350,1741552240434,-500.0,0.00047422,10]
[355775353,1741552240447,-347.00748564,0.00047422,10]
[355775355,1741552240460,-500.0,0.00047422,10]
[355775357,1741552240473,-285.65304894,0.00047422,10]
[355775358,1741552240486,-500.0,0.00047422,10]
[355775359,1741552240497,-500.0,0.00047422,10]
[355775360,1741552240508,-529.76665981,0.00047422,10]
[355775361,1741552240521,-500.0,0.00047422,10]
[355775362,1741552240532,-500.0,0.00047444,6]
[355775363,1741552240545,-532.09,0.00047483,9]
[355775364,1741552240557,-500.0,0.00047581,6]
[355775365,1741552240570,-1000.0,0.00047643,2]
[355775366,1741552240583,-1000.0,0.00047643,2]
[355775367,1741552240596,-3289.50743936,0.00047661,4]
[355775368,1741552240609,-500.0,0.00047671,15]
[355775369,1741552240623,-500.0,0.00047671,120]
[355775370,1741552240637,-683.71,0.00047671,120]
[355775371,1741552240648,-1000.0,0.00047671,2]
[355775372,1741552240659,-1576.94,0.00047671,120]
[355775373,1741552240669,-500.0,0.00047671,120]
[355775374,1741552240679,-500.0,0.00047671,120]
[355775375,1741552240691,-500.0,0.00047671,120]
[355775376,1741552240705,-500.0,0.00047671,120]
[355775377,1741552240719,-616.09,0.00047671,120]
[355775378,1741552240732,-1063.09,0.00047671,120]
[355775379,1741552240743,-697.85,0.00047671,120]
[355775380,1741552240755,-500.0,0.00047671,120]
[355775381,1741552240766,-589.36,0.00047671,120]
[355775382,1741552240780,-2151.37,0.00047671,120]
[355775383,1741552240792,-500.0,0.00047671,120]
[355775385,1741552240803,-22945.58,0.00047671,7]
[355775387,1741552240814,-1083.09,0.00047671,120]
[355775389,1741552240825,-500.0,0.00047671,120]
[355775391,1741552240836,-500.0,0.00047671,120]
[355775393,1741552240847,-500.0,0.00047671,120]
[355775395,1741552240858,-500.0,0.00047671,120]
[355775396,1741552240870,-4678.99,0.00047671,120]
[355775397,1741552240884,-500.0,0.00047671,120]
[355775398,1741552240895,-1127.26,0.00047671,60]
[355775399,1741552240907,-604.65,0.00047671,120]
[355775400,1741552240918,-500.0,0.00047671,120]
[355775401,1741552240932,-500.0,0.00047671,120]
[355775402,1741552240943,-846.22,0.00047671,120]
[355775403,1741552240955,-714.77,0.00047671,120]
[355775404,1741552240967,-2837.2,0.00047671,120]
[355775405,1741552240978,-631.79,0.00047671,120]
[355775406,1741552240990,-500.0,0.00047671,120]
[355775407,1741552241001,-500.0,0.00047671,120]
[355775408,1741552241013,-663.56,0.00047671,120]
[355775409,1741552241024,-500.0,0.00047671,120]
[355775410,1741552241036,-500.0,0.00047671,120]
[355775411,1741552241047,-500.0,0.00047671,120]
[355775413,1741552241059,-1332.51,0.00047671,120]
[355775415,1741552241070,-500.0,0.00047671,120]
[355775417,1741552241081,-500.0,0.00047671,120]
[355775419,1741552241093,-500.0,0.00047671,120]
[355775420,1741552241104,-500.0,0.00047671,120]
[355775421,1741552241115,-500.0,0.00047671,120]
[355775422,1741552241127,-500.0,0.00047671,120]
[355775423,1741552241139,-946.34,0.00047671,120]
[355775424,1741552241151,-500.0,0.00047671,120]
[355775425,1741552241162,-500.0,0.00047671,120]
[355775426,1741552241173,-500.0,0.00047671,120]
[355775427,1741552241185,-500.0,0.00047671,120]
[355775428,1741552241196,-500.0,0.00047671,120]
[355775430,1741552241207,-500.0,0.00047671,15]
[355775432,1741552241218,-500.0,0.00047671,120]
[355775434,1741552241229,-500.0,0.00047671,120]
[355775435,1741552241241,-500.0,0.00047671,120]
[355775437,1741552241252,-9999.0,0.00047671,2]
[355775439,1741552241263,-500.0,0.00047671,120]
[355775441,1741552241275,-1000.0,0.00047671,2]
[355775443,1741552241287,-500.0,0.00047671,120]
[355775444,1741552241299,-1636.54,0.00047671,120]
[355775445,1741552241308,-500.0,0.00047671,120]
[355775446,1741552241318,-500.0,0.00047671,2]
[355775447,1741552241468,-394.82305488,0.00047671,28]
[355775448,1741552241478,-768.4,0.000477,30]
[355775449,1741552241488,-160.0,0.00047702,3]
[355775450,1741552241497,-500.0,0.00047718,6]
[355775451,1741552241506,-150.0,0.00047744,30]
[355775452,1741552241515,-398.0,0.00047783,2]
[355775453,1741552241525,-500.0,0.00047855,6]
[355775454,1741552241534,-151.0,0.000479,24]
[355775455,1741552241543,-1000.0,0.00047945,2]
[355775456,1741552241553,-1000.0,0.00047945,2]
[355775457,1741552241562,-1055.86831887,0.00047945,2]
[355775458,1741552241572,-159.0,0.00048,90]
[355775459,1741552241581,-525.08,0.00048,30]
[355775460,1741552241590,-23808.55278418,0.00048,120]
[355775461,1741552241600,-84927.57867133,0.00048,30]
[355775462,1741552241609,-1101.17770592,0.00048,120]
[355775463,1741552241619,-1230.3248057,0.00048019,4]
[355775464,1741552241628,-444.0,0.0004802,2]
[355775465,1741552241637,-444.0,0.0004802,2]
[355775466,1741552241646,-444.0,0.0004802,2]
[355775467,1741552241655,-444.0,0.0004802,2]
[355775468,1741552241665,-444.0,0.0004802,2]
[355775469,1741552241674,-444.0,0.0004802,2]
[355775470,1741552241683,-444.0,0.0004802,2]
[355775471,1741552241693,-444.0,0.0004802,2]
[355775472,1741552241702,-444.0,0.0004802,2]
[355775473,1741552241711,-444.0,0.0004802,2]
[355775474,1741552241720,-444.0,0.0004802,2]
[355775475,1741552241729,-444.0,0.0004802,2]
[355775476,1741552241739,-444.0,0.0004802,2]
[355775477,1741552241748,-444.0,0.0004802,2]
[355775478,1741552241758,-444.0,0.00048023,2]
[355775479,1741552241767,-444.0,0.00048023,2]
[355775480,1741552241777,-444.0,0.00048023,2]
[355775481,1741552241786,-444.0,0.00048023,2]
[355775482,1741552241795,-444.0,0.00048023,2]
[355775483,1741552241805,-444.0,0.00048023,2]
[355775484,1741552241815,-444.0,0.00048023,2]
[355775485,1741552241824,-1644.75371968,0.0004809,4]
[355775486,1741552241834,-19503.04,0.000481,120]
[355775487,1741552241843,-151.0,0.000481,30]
[355775488,1741552241853,-1000.0,0.00048119,60]
[355775489,1741552241862,-3000.0,0.00048119,2]
[355775490,1741552241872,-150.0,0.00048154,14]
[355775491,1741552241886,-151.29671503,0.00048154,14]
[355775492,1741552241897,-20000.0,0.000482,120]
[355775493,1741552241907,-3289.50743936,0.00048209,4]
[355775494,1741552241916,-500.0,0.00048219,15]
[355775495,1741552241926,-500.0,0.00048219,120]
[355775496,1741552241936,-683.71,0.00048219,120]
[355775497,1741552241946,-1576.94,0.00048219,120]
[355775498,1741552241956,-500.0,0.00048219,120]
[355775499,1741552241967,-500.0,0.00048219,120]
[355775500,1741552241977,-500.0,0.00048219,120]
[355775501,1741552241987,-500.0,0.00048219,120]
[355775502,1741552241996,-616.09,0.00048219,120]
[355775503,1741552242006,-1063.09,0.00048219,120]
[355775504,1741552242016,-697.85,0.00048219,120]
[355775505,1741552242026,-500.0,0.00048219,120]
[355775506,1741552242035,-589.36,0.00048219,120]
[355775507,1741552242045,-2151.37,0.00048219,120]
[355775508,1741552242055,-500.0,0.00048219,120]
[355775509,1741552242064,-22945.58,0.00048219,7]
[355775510,1741552242074,-500.0,0.00048219,120]
[355775511,1741552242083,-500.0,0.00048219,120]
[355775512,1741552242093,-489.93711619,0.00048219,120]
[355775513,1741552242102,-500.0,0.00048219,120]
[355775514,1741552242112,-4678.99,0.00048219,120]
[355775515,1741552242122,-500.0,0.00048219,120]
[355775516,1741552242131,-1127.26,0.00048219,60]
[355775517,1741552242141,-604.65,0.00048219,120]
[355775518,1741552242153,-500.0,0.00048219,120]
[355775519,1741552242162,-500.0,0.00048219,120]
[355775520,1741552242171,-846.22,0.00048219,120]
[355775521,1741552242180,-714.77,0.00048219,120]
[355775522,1741552242189,-2837.2,0.00048219,120]
[355775523,1741552242199,-631.79,0.00048219,120]
[355775524,1741552242209,-500.0,0.00048219,120]
[355775525,1741552242218,-500.0,0.00048219,120]
[355775526,1741552242228,-663.56,0.00048219,120]
[355775527,1741552242237,-500.0,0.00048219,120]
[355775528,1741552242247,-500.0,0.00048219,120]
[355775529,1741552242256,-500.0,0.00048219,120]
[355775530,1741552242265,-1332.51,0.00048219,120]
[355775531,1741552242274,-500.0,0.00048219,120]
[355775532,1741552242284,-500.0,0.00048219,120]
[355775533,1741552242293,-500.0,0.00048219,120]
[355775534,1741552242303,-483.84404987,0.00048219,120]
[355775535,1741552242313,-500.0,0.00048219,120]
[355775536,1741552242322,-500.0,0.00048219,120]
[355775537,1741552242332,-946.34,0.00048219,120]
[355775538,1741552242341,-500.0,0.00048219,120]
[355775539,1741552242351,-500.0,0.00048219,120]
[355775540,1741552242360,-500.0,0.00048219,120]
[355775541,1741552242370,-500.0,0.00048219,120]
[355775542,1741552242379,-500.0,0.00048219,120]
[355775543,1741552242389,-500.0,0.00048219,15]
[355775544,1741552242399,-500.0,0.00048219,120]
[355775545,1741552242409,-500.0,0.00048219,120]
[355775546,1741552242418,-500.0,0.00048219,120]
[355775547,1741552242428,-9999.0,0.00048219,2]
[355775548,1741552242437,-500.0,0.00048219,120]
[355775549,1741552242447,-1000.0,0.00048219,2]
[355775550,1741552242456,-500.0,0.00048219,120]
[355775551,1741552242467,-1636.54,0.00048219,120]
[355775552,1741552242477,-500.0,0.00048219,120]
[355775553,1741552242488,-506.58670307,0.00048219,2]
[355775554,1741552242497,-1644.75371968,0.0004829,4]
[355775555,1741552242507,-20000.0,0.000483,120]
[355775556,1741552242516,-151.0,0.000483,28]
[355775557,1741552242526,-159.0,0.00048356,90]
[355775558,1741552242535,-1644.75371968,0.0004839,4]
[355775559,1741552242544,-20000.0,0.000484,120]
[355775560,1741552242556,-33458.38117015,0.000484,120]
[355775561,1741552242566,-160.68577113,0.000484,120]
[355775562,1741552242575,-253.35418894,0.00048473,3]
[355775563,1741552242585,-150.0,0.00048473,10]
[355775564,1741552242595,-153.52596453,0.00048473,10]
[355775565,1741552242605,-519.97473805,0.00048473,10]
[355775566,1741552242614,-151.0,0.000485,120]
[355775567,1741552242623,-20000.0,0.000485,120]
[355775568,1741552242633,-773.4556456,0.000485,120]
[355775569,1741552242642,-690086.46616314,0.000485,120]
[355775570,1741552242651,-3103.03275964,0.000485,2]
[355775571,1741552242660,-2297.188,0.00048535,30]
[355775572,1741552242671,-1644.75371968,0.0004859,4]
[355775573,1741552242680,-19503.039999,0.000486,120]
[355775574,1741552242690,-999.999998,0.0004868,3]
[355775575,1741552242700,-20000.0,0.000487,120]
[355775576,1741552242709,-151.0,0.000487,25]
[355775577,1741552242719,-3289.50743936,0.00048757,4]
[355775578,1741552242729,-500.0,0.00048767,15]
[355775579,1741552242738,-500.0,0.00048767,120]
[355775580,1741552242747,-683.71,0.00048767,120]
[355775581,1741552242757,-1576.94,0.00048767,120]
[355775582,1741552242766,-500.0,0.00048767,120]
[355775583,1741552242775,-500.0,0.00048767,120]
[355775584,1741552242784,-500.0,0.00048767,120]
[355775585,1741552242794,-500.0,0.00048767,120]
[355775586,1741552242804,-616.09,0.00048767,120]
[355775587,1741552242814,-1063.09,0.00048767,120]
[355775588,1741552242823,-697.85,0.00048767,120]
[355775589,1741552242833,-500.0,0.00048767,120]
[355775590,1741552242842,-589.36,0.00048767,120]
[355775591,1741552242851,-2151.37,0.00048767,120]
[355775592,1741552242861,-500.0,0.00048767,120]
[355775593,1741552242870,-22945.58,0.00048767,7]
[355775594,1741552242880,-1083.09,0.00048767,120]
[355775595,1741552242894,-204.3324836,0.00048767,120]
[355775596,1741552242904,-500.0,0.00048767,120]
[355775597,1741552242913,-500.0,0.00048767,120]
[355775598,1741552242923,-4678.99,0.00048767,120]
[355775599,1741552242934,-500.0,0.00048767,120]
[355775600,1741552242944,-1127.26,0.00048767,60]
[355775601,1741552242955,-604.65,0.00048767,120]
[355775602,1741552242967,-500.0,0.00048767,120]
[355775603,1741552242976,-500.0,0.00048767,120]
[355775604,1741552242985,-846.22,0.00048767,120]
[355775605,1741552242995,-714.77,0.00048767,120]
[355775606,1741552243005,-2837.2,0.00048767,120]
[355775607,1741552243014,-631.79,0.00048767,120]
[355775608,1741552243024,-500.0,0.00048767,120]
[355775609,1741552243034,-500.0,0.00048767,120]
[355775610,1741552243044,-663.56,0.00048767,120]
[355775611,1741552243053,-500.0,0.00048767,120]
[355775612,1741552243062,-622.35873035,0.00048767,120]
[355775613,1741552243071,-500.0,0.00048767,120]
[355775614,1741552243081,-1332.51,0.00048767,120]
[355775615,1741552243091,-500.0,0.00048767,120]
[355775616,1741552243101,-500.0,0.00048767,120]
[355775617,1741552243110,-500.0,0.00048767,120]
[355775618,1741552243119,-500.0,0.00048767,120]
[355775620,1741552243129,-500.0,0.00048767,120]
[355775623,1741552243139,-946.34,0.00048767,120]
[355775625,1741552243149,-500.0,0.00048767,120]
[355775626,1741552243158,-500.0,0.00048767,120]
[355775627,1741552243168,-500.0,0.00048767,120]
[355775628,1741552243178,-500.0,0.00048767,120]
[355775629,1741552243188,-500.0,0.00048767,120]
[355775631,1741552243199,-500.0,0.00048767,15]
[355775633,1741552243208,-500.0,0.00048767,120]
[355775635,1741552243218,-500.0,0.00048767,120]
[355775636,1741552243227,-500.0,0.00048767,120]
[355775637,1741552243237,-9999.0,0.00048767,2]
[355775638,1741552243247,-500.0,0.00048767,120]
[355775639,1741552243257,-1000.0,0.00048767,2]
[355775640,1741552243266,-500.0,0.00048767,120]
[355775641,1741552243276,-1636.54,0.00048767,120]
[355775642,1741552243285,-500.0,0.00048767,120]
[355775643,1741552243295,-20000.0,0.000488,120]
[355775645,1741552243304,-1023.92418483,0.0004881,10]